fUSD/lending_fUSD_20250525
["ID","MTS","AMOUNT","RATE_DAILY","PERIOD"]
[362332948,1748200242733,-420.0,0.00019726,2]
[362332949,1748200242743,-420.0,0.00019726,2]
[362332950,1748200242752,-420.0,0.00019726,2]
[362332951,1748200242761,-420.0,0.00019726,2]
[362332952,1748200242771,-444.49194438,0.00019726,2]
[362332954,1748200242780,-420.0,0.00019726,2]
[362332956,1748200242789,-420.0,0.00019726,2]
[362332958,1748200242798,-152.43,0.00019726,2]
[362332959,1748200242807,-420.0,0.00019726,2]
[362332960,1748200242817,-420.0,0.00019726,2]
[362332961,1748200242826,-420.0,0.00019726,2]
[362332963,1748200242835,-235.05205804,0.00019726,2]
[362332964,1748200242844,-420.0,0.00019726,2]
[362332965,1748200242853,-420.0,0.00019726,2]
[362332966,1748200242862,-420.0,0.00019726,2]
[362332967,1748200242871,-420.0,0.00019726,2]
[362332968,1748200242883,-420.0,0.00019726,2]
[362332970,1748200242893,-420.0,0.00019726,2]
[362332971,1748200242902,-335.687575,0.00019726,2]
[362332972,1748200242911,-420.0,0.00019726,2]
[362332973,1748200242920,-420.0,0.00019726,2]
[362332974,1748200242929,-420.0,0.00019726,2]
[362332975,1748200242938,-420.0,0.00019726,2]
[362332976,1748200242948,-420.0,0.00019726,2]
[362332977,1748200242957,-420.0,0.00019726,2]
[362332978,1748200242967,-427.07573219,0.00019726,2]
[362332980,1748200242976,-420.0,0.00019726,2]
[362332982,1748200242986,-420.0,0.00019726,2]
[362332983,1748200242995,-500.0,0.00019726,2]
[362332984,1748200243005,-420.0,0.00019726,2]
[362332985,1748200243014,-420.0,0.00019726,2]
[362332986,1748200243023,-420.0,0.00019726,2]
[362332987,1748200243032,-420.0,0.00019726,2]
[362332988,1748200243042,-420.0,0.00019726,2]
[362332989,1748200243051,-420.0,0.00019726,2]
[362332990,1748200243059,-420.0,0.00019726,2]
[362332991,1748200243068,-420.0,0.00019726,2]
[362332993,1748200243265,-456.4239122,0.00019726,2]
[362332994,1748200243277,-420.0,0.00019726,2]
[362332995,1748200243287,-420.0,0.00019726,2]
[362332996,1748200243298,-420.0,0.00019726,2]
[362332997,1748200243308,-420.0,0.00019726,2]
[362332998,1748200243318,-420.0,0.00019726,2]
[362332999,1748200243329,-420.0,0.00019726,2]
[362333000,1748200243338,-420.0,0.00019726,2]
[362333001,1748200243349,-1895.83,0.00019726,2]
[362333002,1748200243359,-420.0,0.00019726,2]
[362333003,1748200243369,-1895.83,0.00019726,2]
[362333004,1748200243380,-420.0,0.00019726,2]
[362333005,1748200243394,-420.0,0.00019726,2]
[362333006,1748200243403,-683.95,0.00019726,2]
[362333007,1748200243413,-683.95,0.00019726,2]
[362333008,1748200243424,-420.0,0.00019726,2]
[362333009,1748200243435,-420.0,0.00019726,2]
[362333010,1748200243445,-420.0,0.00019726,2]
[362333011,1748200243455,-448.41026694,0.00019726,2]
[362333012,1748200243466,-845.96,0.00019726,2]
[362333013,1748200243477,-845.96,0.00019726,2]
[362333014,1748200243487,-239.1365508,0.00019726,2]
[362333015,1748200243496,-420.0,0.00019726,2]
[362333016,1748200243506,-1408.68,0.00019726,2]
[362333017,1748200243515,-1408.68,0.00019726,2]
[362333018,1748200243525,-151.0,0.00019726,2]
[362333019,1748200243535,-420.0,0.00019726,2]
[362333020,1748200243546,-420.0,0.00019726,2]
[362333021,1748200243557,-420.0,0.00019726,2]
[362333022,1748200243567,-420.0,0.00019726,2]
[362333023,1748200243578,-420.0,0.00019726,2]
[362333024,1748200243588,-420.0,0.00019726,2]
[362333026,1748200243597,-420.0,0.00019726,2]
[362333028,1748200243608,-420.0,0.00019726,2]
[362333029,1748200243617,-420.0,0.00019726,2]
[362333030,1748200243626,-231.552318,0.00019726,2]
[362333031,1748200243636,-157.0516084,0.00019726,2]
[362333032,1748200243646,-420.0,0.00019726,2]
[362333033,1748200243656,-420.0,0.00019726,2]
[362333034,1748200243667,-150.84380482,0.00019726,2]
[362333035,1748200243677,-420.0,0.00019726,2]
[362333036,1748200243687,-420.0,0.00019726,2]
[362333037,1748200243697,-420.0,0.00019726,2]
[362333038,1748200243707,-420.0,0.00019726,2]
[362333039,1748200243717,-420.0,0.00019726,2]
[362333040,1748200243727,-420.0,0.00019726,2]
[362333042,1748200243737,-420.0,0.00019726,2]
[362333044,1748200243746,-530.41,0.00019726,2]
[362333046,1748200243756,-530.41,0.00019726,2]
[362333048,1748200243765,-420.0,0.00019726,2]
[362333049,1748200243775,-420.0,0.00019726,2]
[362333050,1748200243784,-151.0,0.00019726,2]
[362333051,1748200243794,-1000.0,0.00019726,2]
[362333052,1748200243804,-1000.0,0.00019726,2]
[362333053,1748200243814,-1000.0,0.00019726,2]
[362333054,1748200243823,-1000.0,0.00019726,2]
[362333055,1748200243833,-1000.0,0.00019726,2]
[362333056,1748200243842,-1000.0,0.00019726,2]
[362333057,1748200243851,-1000.0,0.00019726,2]
[362333058,1748200243861,-1000.0,0.00019726,2]
[362333059,1748200243871,-1000.0,0.00019726,2]
[362333060,1748200243880,-1000.0,0.00019726,2]
[362333061,1748200243889,-1000.0,0.00019726,2]
[362333062,1748200243898,-1000.0,0.00019726,2]
[362333063,1748200243907,-1000.0,0.00019726,2]
[362333064,1748200243917,-1000.0,0.00019726,2]
[362333065,1748200243926,-1000.0,0.00019726,2]
[362333066,1748200243935,-1000.0,0.00019726,2]
[362333067,1748200243944,-1000.0,0.00019726,2]
[362333068,1748200243953,-1000.0,0.00019726,2]
[362333069,1748200243963,-1000.0,0.00019726,2]
[362333070,1748200243972,-1000.0,0.00019726,2]
[362333071,1748200243981,-1000.0,0.00019726,2]
[362333072,1748200243991,-1000.0,0.00019726,2]
[362333073,1748200244000,-1000.0,0.00019726,2]
[362333074,1748200244009,-1000.0,0.00019726,2]
[362333075,1748200244018,-1000.0,0.00019726,2]
[362333076,1748200244028,-1000.0,0.00019726,2]
[362333077,1748200244038,-1000.0,0.00019726,2]
[362333078,1748200244047,-1000.0,0.00019726,2]
[362333079,1748200244056,-1000.0,0.00019726,2]
[362333080,1748200244066,-1000.0,0.00019726,2]
[362333081,1748200244075,-1000.0,0.00019726,2]
[362333082,1748200244084,-1000.0,0.00019726,2]
[362333083,1748200244094,-1000.0,0.00019726,2]
[362333084,1748200244103,-1000.0,0.00019726,2]
[362333085,1748200244112,-1000.0,0.00019726,2]
[362333086,1748200244122,-1000.0,0.00019726,2]
[362333087,1748200244134,-1000.0,0.00019726,2]
[362333088,1748200244144,-1000.0,0.00019726,2]
[362333089,1748200244154,-1000.0,0.00019726,2]
[362333090,1748200244165,-1000.0,0.00019726,2]
[362333091,1748200244175,-1000.0,0.00019726,2]
[362333092,1748200244184,-1000.0,0.00019726,2]
[362333093,1748200244193,-1000.0,0.00019726,2]
[362333094,1748200244203,-1000.0,0.00019726,2]
[362333095,1748200244213,-1000.0,0.00019726,2]
[362333096,1748200244223,-1000.0,0.00019726,2]
[362333097,1748200244233,-1000.0,0.00019726,2]
[362333098,1748200244243,-223.99109051,0.00019728,2]
[362333099,1748200244252,-7264.38455171,0.00019739,2]
[362333100,1748200244262,-164.84183662,0.00019766,2]
[362333101,1748200244271,-1074.84462104,0.00019768,2]
[362333102,1748200244280,-677.23171151,0.00019768,2]
[362333103,1748200244290,-1500.0,0.00019768,2]
[362333104,1748200244300,-500.0,0.00019773,2]
[362333105,1748200244311,-500.0,0.00019773,2]
[362333106,1748200244321,-501.83404185,0.00019773,2]
[362333107,1748200244331,-1488.388,0.00019791,2]
[362333108,1748200244340,-881.0,0.00019791,2]
[362333109,1748200244350,-6918.0,0.00019791,2]
[362333110,1748200244360,-4057.0,0.00019791,2]
[362333111,1748200244369,-154.0,0.00019791,2]
[362333112,1748200244380,-845.0,0.00019791,2]
[362333113,1748200244391,-1975.06904453,0.00019794,2]
[362333114,1748200244403,-223.99109051,0.00019797,2]
[362333115,1748200244412,-1000.0,0.00019831,2]
[362333116,1748200244422,-1000.0,0.00019831,2]
[362333117,1748200244433,-1000.0,0.00019831,2]
[362333118,1748200244442,-1000.0,0.00019831,2]
[362333119,1748200244452,-1000.0,0.00019831,2]
[362333120,1748200244462,-1000.0,0.00019831,2]
[362333121,1748200244474,-1025.0,0.00019831,2]
[362333122,1748200244484,-301.65474,0.00019831,2]
[362333123,1748200244494,-151.0,0.00019831,2]
[362333124,1748200244504,-155.445419,0.00019831,2]
[362333125,1748200244513,-580.668852,0.00019831,2]
[362333126,1748200244523,-4038.172306,0.00019831,2]
[362333127,1748200244532,-580.668852,0.00019831,2]
[362333128,1748200244541,-4038.172306,0.00019831,2]
[362333129,1748200244552,-151.026201,0.00019831,2]
[362333130,1748200244562,-153.213813,0.00019831,2]
[362333131,1748200244573,-151.0,0.00019831,2]
[362333132,1748200244583,-151.0,0.00019831,2]
[362333133,1748200244592,-217.570133,0.00019831,2]
[362333134,1748200244601,-164.84183662,0.00019833,2]
[362333135,1748200244612,-200.0,0.0001984,2]
[362333136,1748200244622,-804.73587652,0.0001984,2]
[362333137,1748200244632,-152.0,0.0001984,3]
[362333138,1748200244641,-223.99109051,0.00019866,2]
[362333139,1748200244651,-420.0,0.00019899,2]
[362333140,1748200244661,-420.0,0.00019899,2]
[362333141,1748200244670,-420.0,0.00019899,2]
[362333142,1748200244680,-420.0,0.00019899,2]
[362333143,1748200244690,-463.46845306,0.00019899,2]
[362333144,1748200244700,-420.0,0.00019899,2]
[362333145,1748200244710,-420.0,0.00019899,2]
[362333146,1748200244719,-491.52117499,0.00019899,2]
[362333147,1748200244729,-420.0,0.00019899,2]
[362333148,1748200244739,-1283.37,0.00019899,2]
[362333149,1748200244750,-464.52744249,0.00019899,2]
[362333150,1748200244759,-420.0,0.00019899,2]
[362333151,1748200244768,-420.0,0.00019899,2]
[362333152,1748200244778,-429.87,0.00019899,2]
[362333153,1748200244789,-420.0,0.00019899,2]
[362333154,1748200244798,-420.0,0.00019899,2]
[362333155,1748200244809,-223.75915696,0.00019899,2]
[362333156,1748200244818,-420.0,0.00019899,2]
[362333157,1748200244827,-420.0,0.00019899,2]
[362333158,1748200244838,-420.0,0.00019899,2]
[362333159,1748200244848,-420.0,0.00019899,2]
[362333160,1748200244858,-420.0,0.00019899,2]
[362333161,1748200244868,-420.0,0.00019899,2]
[362333162,1748200244879,-420.0,0.00019899,2]
[362333163,1748200244889,-420.0,0.00019899,2]
[362333164,1748200244900,-420.0,0.00019899,2]
[362333165,1748200244910,-420.0,0.00019899,2]
[362333166,1748200244920,-420.0,0.00019899,2]
[362333167,1748200244930,-420.0,0.00019899,2]
[362333168,1748200244940,-293.92817804,0.000199,2]
[362333169,1748200244950,-1448.96974788,0.000199,2]
[362333170,1748200244960,-24749.7077,0.000199,2]
[362333171,1748200244971,-4667.3691,0.000199,2]
[362333172,1748200244981,-1129.501,0.000199,2]
[362333173,1748200244992,-178.158,0.000199,2]
[362333174,1748200245001,-814.10437631,0.000199,2]
[362333175,1748200245011,-1975.06904453,0.000199,2]
[362333176,1748200245020,-156.630245,0.000199,2]
[362333177,1748200245029,-151.0,0.000199,2]
[362333178,1748200245039,-151.769313,0.000199,2]
[362333179,1748200245048,-151.0,0.000199,2]
[362333180,1748200245058,-151.0,0.000199,2]
[362333181,1748200245069,-151.0,0.000199,2]
[362333182,1748200245079,-292.361212,0.000199,2]
[362333183,1748200245089,-164.84183662,0.000199,2]
[362333184,1748200245099,-159.09992582,0.000199,2]
[362333185,1748200245109,-7264.38455171,0.000199,2]
[362333186,1748200245119,-307.37433252,0.000199,2]
[362333187,1748200245129,-151.0,0.000199,2]
[362333188,1748200245141,-1249.51970405,0.000199,2]
[362333189,1748200245153,-152.443413,0.000199,2]
[362333190,1748200245163,-262.43344882,0.000199,2]
[362333191,1748200245174,-223.99109051,0.00019934,2]
[362333192,1748200245184,-263.03,0.00019946,2]
[362333193,1748200245195,-498.999999,0.0001995,2]
[362333194,1748200245205,-500.0,0.00019973,2]
[362333195,1748200245215,-500.0,0.00019973,2]
[362333196,1748200245225,-500.0,0.00019973,2]
[362333197,1748200245237,-500.0,0.00019973,2]
[362333198,1748200245247,-162.48814648,0.00019973,2]
[362333199,1748200245256,-501.98463348,0.00019973,2]
[362333200,1748200245265,-150.01,0.0001998,2]
[362333201,1748200245276,-439.07,0.0001998,2]
[362333202,1748200245285,-175.04078365,0.00019989,2]
[362333203,1748200245295,-420.0,0.00019989,2]
[362333204,1748200245305,-420.0,0.00019989,2]
[362333205,1748200245314,-420.0,0.00019989,2]
[362333206,1748200245325,-420.0,0.00019989,2]
[362333207,1748200245334,-420.0,0.00019989,2]
[362333208,1748200245343,-433.66442332,0.00019989,2]
[362333209,1748200245354,-293.64444895,0.00019989,2]
[362333210,1748200245364,-420.0,0.00019989,2]
[362333211,1748200245375,-444.59835917,0.00019989,2]
[362333212,1748200245385,-420.0,0.00019989,2]
[362333213,1748200245399,-420.0,0.00019989,2]
[362333214,1748200245408,-420.0,0.00019989,2]
[362333215,1748200245419,-500.0,0.00019989,2]
[362333216,1748200245429,-1895.83,0.00019989,2]
[362333217,1748200245441,-683.95,0.00019989,2]
[362333218,1748200245451,-420.0,0.00019989,2]
[362333219,1748200245460,-845.96,0.00019989,2]
[362333220,1748200245471,-1408.68,0.00019989,2]
[362333221,1748200245482,-420.0,0.00019989,2]
[362333222,1748200245492,-420.0,0.00019989,2]
[362333223,1748200245502,-420.0,0.00019989,2]
[362333224,1748200245511,-530.41,0.00019989,2]
[362333225,1748200245522,-151.0,0.0001999,2]
[362333226,1748200245531,-151.0,0.0001999,2]
[362333227,1748200245540,-226.35594286,0.0001999,2]
[362333228,1748200245551,-151.0,0.0001999,2]
[362333229,1748200245561,-151.0,0.0001999,2]
[362333230,1748200245571,-151.0,0.0001999,2]
[362333231,1748200245580,-151.0,0.0001999,2]
[362333232,1748200245591,-151.697241,0.0001999,2]
[362333233,1748200245601,-151.0,0.0001999,2]
[362333234,1748200245611,-151.0,0.0001999,2]
[362333235,1748200245620,-151.0,0.0001999,2]
[362333236,1748200245630,-157.35348,0.0001999,2]
[362333237,1748200245640,-151.0,0.0001999,2]
[362333238,1748200245651,-151.0,0.0001999,2]
[362333239,1748200245662,-151.0,0.0001999,2]
[362333240,1748200245671,-151.0,0.0001999,2]
[362333241,1748200245682,-162.1787,0.0001999,2]
[362333242,1748200245693,-151.0,0.0001999,2]
[362333243,1748200245703,-151.0,0.0001999,2]
[362333244,1748200245712,-151.0,0.0001999,2]
[362333245,1748200245722,-151.0,0.0001999,2]
[362333246,1748200245732,-151.0,0.0001999,2]
[362333247,1748200245741,-151.0,0.0001999,2]
[362333248,1748200245751,-151.0,0.0001999,2]
[362333249,1748200245762,-151.0,0.0001999,2]
[362333250,1748200245772,-151.0,0.0001999,2]
[362333251,1748200245782,-151.0,0.0001999,2]
[362333252,1748200245791,-151.0,0.0001999,2]
[362333253,1748200245800,-153.977614,0.0001999,2]
[362333254,1748200245810,-178.958119,0.0001999,2]
[362333255,1748200245819,-178.958119,0.0001999,2]
[362333256,1748200245828,-178.958119,0.0001999,2]
[362333257,1748200245837,-178.958119,0.0001999,2]
[362333258,1748200245847,-151.0,0.0001999,2]
[362333259,1748200245856,-151.0,0.0001999,2]
[362333260,1748200245865,-151.0,0.0001999,2]
[362333261,1748200245875,-151.0,0.0001999,2]
[362333262,1748200245884,-151.0,0.0001999,2]
[362333263,1748200245893,-151.0,0.0001999,2]
[362333264,1748200245903,-151.0,0.0001999,2]
[362333265,1748200245913,-151.0,0.0001999,2]
[362333266,1748200245922,-151.0,0.0001999,2]
[362333267,1748200245932,-544.949438,0.0001999,2]
[362333268,1748200245941,-544.949438,0.0001999,2]
[362333269,1748200245950,-544.949438,0.0001999,2]
[362333270,1748200245960,-544.949438,0.0001999,2]
[362333271,1748200245970,-154.188652,0.0001999,2]
[362333272,1748200245979,-401.504176,0.0001999,2]
[362333273,1748200245988,-401.504176,0.0001999,2]
[362333274,1748200245997,-151.0,0.0001999,2]
[362333275,1748200246007,-151.0,0.0001999,2]
[362333276,1748200246016,-401.504176,0.0001999,2]
[362333277,1748200246025,-401.504176,0.0001999,2]
[362333278,1748200246034,-157.908693,0.0001999,2]
[362333279,1748200246043,-151.0,0.0001999,2]
[362333280,1748200246054,-151.0,0.0001999,2]
[362333281,1748200246064,-580.668852,0.0001999,2]
[362333282,1748200246073,-580.668852,0.0001999,2]
[362333283,1748200246082,-4038.172306,0.0001999,2]
[362333284,1748200246092,-4038.172306,0.0001999,2]
[362333285,1748200246102,-580.668852,0.0001999,2]
[362333286,1748200246112,-580.668852,0.0001999,2]
[362333287,1748200246123,-4038.172306,0.0001999,2]
[362333288,1748200246134,-4038.172306,0.0001999,2]
[362333289,1748200246146,-151.0,0.0001999,2]
[362333290,1748200246156,-151.0,0.0001999,2]
[362333291,1748200246166,-151.0,0.0001999,2]
[362333292,1748200246178,-151.0,0.0001999,2]
[362333293,1748200246190,-1349.823335,0.0001999,2]
[362333294,1748200246200,-1349.823335,0.0001999,2]
[362333295,1748200246211,-152.813479,0.0001999,2]
[362333296,1748200246223,-200.404828,0.0001999,2]
[362333297,1748200246233,-200.404828,0.0001999,2]
[362333298,1748200246243,-238.750298,0.0001999,2]
[362333299,1748200246253,-1349.823335,0.0001999,2]
[362333300,1748200246264,-1349.823335,0.0001999,2]
[362333301,1748200246275,-151.0,0.0001999,2]
[362333302,1748200246284,-200.404828,0.0001999,2]
[362333303,1748200246293,-200.404828,0.0001999,2]
[362333304,1748200246302,-151.0,0.0001999,2]
[362333305,1748200246311,-151.0,0.0001999,2]
[362333306,1748200246321,-158.199029,0.0001999,2]
[362333307,1748200246330,-151.0,0.0001999,2]
[362333308,1748200246339,-151.0,0.0001999,2]
[362333309,1748200246348,-151.0,0.0001999,2]
[362333310,1748200246357,-151.0,0.0001999,2]
[362333311,1748200246366,-151.0,0.0001999,2]
[362333312,1748200246375,-151.0,0.0001999,2]
[362333313,1748200246384,-267.611093,0.0001999,2]
[362333314,1748200246396,-151.0,0.0001999,2]
[362333315,1748200246405,-151.0,0.0001999,2]
[362333316,1748200246414,-151.0,0.0001999,2]
[362333317,1748200246423,-151.0,0.0001999,2]
[362333318,1748200246432,-151.0,0.0001999,2]
[362333319,1748200246442,-45122.1951759,0.0001999,2]
[362333320,1748200246451,-151.0,0.0001999,2]
[362333321,1748200246460,-151.0,0.0001999,2]
[362333322,1748200246470,-151.0,0.0001999,2]
[362333323,1748200246479,-211.76283,0.0001999,2]
[362333324,1748200246488,-211.76283,0.0001999,2]
[362333326,1748200246497,-211.76283,0.0001999,2]
[362333327,1748200246506,-211.76283,0.0001999,2]
[362333328,1748200246515,-4287.6652969,0.0001999,2]
[362333329,1748200246524,-217.570133,0.0001999,2]
[362333330,1748200246533,-420.0,0.00019994,2]
[362333331,1748200246542,-440.88843868,0.00019994,2]
[362333332,1748200246551,-204.60019761,0.00019994,2]
[362333333,1748200246561,-199.64666705,0.00019994,2]
[362333334,1748200246570,-429.74911455,0.00019994,2]
[362333335,1748200246579,-312.22233737,0.00019994,2]
[362333336,1748200246588,-420.0,0.00019994,2]
[362333337,1748200246597,-420.0,0.00019994,2]
[362333338,1748200246606,-243.31440239,0.00019994,2]
[362333339,1748200246616,-420.0,0.00019994,2]
[362333340,1748200246626,-420.0,0.00019994,2]
[362333341,1748200246635,-420.0,0.00019994,2]
[362333342,1748200246644,-420.0,0.00019994,2]
[362333343,1748200246653,-217.3,0.00019994,2]
[362333344,1748200246663,-420.0,0.00019994,2]
[362333345,1748200246672,-421.835656,0.00019994,2]
[362333346,1748200246681,-420.0,0.00019994,2]
[362333347,1748200246690,-420.0,0.00019994,2]
[362333348,1748200246699,-429.80295049,0.00019994,2]
[362333349,1748200246707,-435.21808901,0.00019994,2]
[362333350,1748200246716,-420.0,0.00019994,2]
[362333351,1748200246725,-420.0,0.00019994,2]
[362333352,1748200246734,-420.0,0.00019994,2]
[362333353,1748200246743,-420.0,0.00019994,2]
[362333354,1748200246753,-420.0,0.00019994,2]
[362333355,1748200246762,-420.0,0.00019994,2]
[362333356,1748200246772,-429.22999202,0.00019994,2]
[362333357,1748200246781,-239.99501405,0.00019994,2]
[362333358,1748200246790,-420.0,0.00019994,2]
[362333359,1748200246799,-420.0,0.00019994,2]
[362333360,1748200246808,-420.0,0.00019994,2]
[362333361,1748200246817,-420.0,0.00019994,2]
[362333362,1748200246827,-420.0,0.00019994,2]
[362333363,1748200246836,-420.0,0.00019994,2]
[362333364,1748200246847,-420.0,0.00019994,2]
[362333365,1748200246855,-424.068361,0.00019994,2]
[362333366,1748200246864,-420.0,0.00019994,2]
[362333367,1748200246874,-420.0,0.00019994,2]
[362333368,1748200246883,-420.0,0.00019994,2]
[362333369,1748200246892,-433.55211286,0.00019994,2]
[362333370,1748200246901,-424.70699217,0.00019994,2]
[362333371,1748200246911,-434.23778998,0.00019994,2]
[362333372,1748200246919,-435.76487929,0.00019994,2]
[362333373,1748200246931,-423.4348262,0.00019994,2]
[362333374,1748200246941,-440.53213156,0.00019994,2]
[362333375,1748200246950,-424.61471224,0.00019994,2]
[362333376,1748200246959,-420.0,0.00019994,2]
[362333377,1748200246968,-420.0,0.00019994,2]
[362333378,1748200246977,-420.0,0.00019994,2]
[362333379,1748200246987,-420.0,0.00019994,2]
[362333380,1748200246996,-420.0,0.00019994,2]
[362333381,1748200247005,-420.0,0.00019994,2]
[362333382,1748200247014,-1053.44251007,0.00019994,5]
[362333383,1748200247023,-420.0,0.00019994,2]
[362333384,1748200247032,-420.0,0.00019994,2]
[362333385,1748200247041,-1283.37,0.00019994,2]
[362333386,1748200247050,-420.0,0.00019994,2]
[362333387,1748200247059,-420.0,0.00019994,2]
[362333388,1748200247069,-420.0,0.00019994,2]
[362333389,1748200247079,-420.0,0.00019994,2]
[362333390,1748200247088,-420.0,0.00019994,2]
[362333391,1748200247098,-420.0,0.00019994,2]
[362333392,1748200247108,-420.0,0.00019994,2]
[362333393,1748200247119,-420.0,0.00019994,2]
[362333394,1748200247129,-420.0,0.00019994,2]
[362333395,1748200247140,-420.0,0.00019994,2]
[362333396,1748200247150,-500.0,0.00019994,2]
[362333397,1748200247161,-420.0,0.00019994,2]
[362333398,1748200247173,-420.0,0.00019994,2]
[362333399,1748200247183,-338.26173166,0.00019994,2]
[362333400,1748200247194,-420.0,0.00019994,2]
[362333401,1748200247204,-1895.83,0.00019994,2]
[362333402,1748200247215,-420.0,0.00019994,2]
[362333403,1748200247227,-683.95,0.00019994,2]
[362333404,1748200247238,-845.96,0.00019994,2]
[362333405,1748200247248,-1408.68,0.00019994,2]
[362333406,1748200247258,-420.0,0.00019994,2]
[362333407,1748200247271,-434.8,0.00019994,2]
[362333408,1748200247281,-219.57144107,0.00019994,2]
[362333409,1748200247291,-436.75,0.00019994,2]
[362333410,1748200247302,-530.41,0.00019994,2]
[362333411,1748200247313,-151.0,0.00019995,2]
[362333412,1748200247324,-151.0,0.00019995,2]
[362333413,1748200247502,-170.275229,0.00019995,2]
[362333414,1748200247511,-151.0,0.00019995,2]
[362333415,1748200247521,-151.0,0.00019995,2]
[362333416,1748200247532,-151.0,0.00019995,2]
[362333417,1748200247544,-151.0,0.00019995,2]
[362333418,1748200247556,-417.540063,0.00019995,2]
[362333419,1748200247567,-417.540063,0.00019995,2]
[362333420,1748200247577,-197.92121,0.00019995,2]
[362333421,1748200247587,-151.0,0.00019995,2]
[362333422,1748200247596,-197.92121,0.00019995,2]
[362333423,1748200247605,-151.0,0.00019995,2]
[362333424,1748200247614,-151.0,0.00019995,2]
[362333425,1748200247624,-151.0,0.00019995,2]
[362333426,1748200247633,-151.0,0.00019995,2]
[362333427,1748200247642,-151.0,0.00019995,2]
[362333428,1748200247652,-151.0,0.00019995,2]
[362333429,1748200247661,-151.928014,0.00019995,2]
[362333430,1748200247671,-151.0,0.00019995,2]
[362333431,1748200247680,-151.0,0.00019995,2]
[362333432,1748200247690,-151.0,0.00019995,2]
[362333433,1748200247699,-151.0,0.00019995,2]
[362333434,1748200247708,-151.0,0.00019995,2]
[362333435,1748200247718,-151.0,0.00019995,2]
[362333436,1748200247727,-151.0,0.00019995,2]
[362333437,1748200247737,-151.0,0.00019995,2]
[362333438,1748200247747,-151.0,0.00019995,2]
[362333439,1748200247756,-151.0,0.00019995,2]
[362333440,1748200247766,-151.0,0.00019995,2]
[362333441,1748200247775,-544.949438,0.00019995,2]
[362333442,1748200247784,-544.949438,0.00019995,2]
[362333443,1748200247793,-694.723775,0.00019995,2]
[362333444,1748200247803,-401.504176,0.00019995,2]
[362333445,1748200247813,-151.0,0.00019995,2]
[362333446,1748200247823,-401.504176,0.00019995,2]
[362333447,1748200247834,-6384.0681061,0.00019995,2]
[362333448,1748200247845,-151.0,0.00019995,2]
[362333449,1748200247854,-580.668852,0.00019995,2]
[362333450,1748200247863,-75763.562554,0.00019995,2]
[362333451,1748200247872,-4038.172306,0.00019995,2]
[362333452,1748200247882,-580.668852,0.00019995,2]
[362333453,1748200247891,-4038.172306,0.00019995,2]
[362333454,1748200247900,-151.0,0.00019995,2]
[362333455,1748200247909,-151.0,0.00019995,2]
[362333456,1748200247919,-1349.823335,0.00019995,2]
[362333457,1748200247928,-200.404828,0.00019995,2]
[362333458,1748200247937,-1349.823335,0.00019995,2]
[362333459,1748200247946,-151.0,0.00019995,2]
[362333460,1748200247955,-200.404828,0.00019995,2]
[362333461,1748200247965,-151.0,0.00019995,2]
[362333462,1748200247974,-46184.6629178,0.00019995,2]